bitfinex/quotes_ETHUSD_20260226
["timestamp","ask_amount","ask_price","bid_price","bid_amount"]
[1772119262059,2.66725774,2027.8,2026.1,0.88888882]
[1772119262279,1.23304562,2027.5,2026.2,2.12272555]
[1772119262860,1.179,2028.2,2026.3,0.88888882]
[1772119263063,1.179,2028.2,2027.5,0.0011]
[1772119263259,1.179,2028.2,2026.3,0.88888882]
[1772119263472,2.16377259,2028.2,2026.3,0.88888882]
[1772119263641,3.37975686,2028.3,2026.5,0.88888882]
[1772119263642,1.23255928,2028.3,2026.5,0.88888882]
[1772119264252,2.2175142,2028.0,2026.5,2.12252295]
[1772119264454,0.98477259,2027.9,2026.5,1.23363413]
[1772119265094,0.98477259,2027.9,2026.2,4.93510339]
[1772119265375,1.23274161,2028.0,2026.3,0.88888882]
[1772119265879,1.23274161,2028.0,2026.5,0.88888882]
[1772119266394,4.93096646,2028.1,2026.6,2.23759321]
[1772119266671,4.93096646,2028.1,2026.6,3.12648203]
[1772119267248,0.98477259,2028.0,2026.2,4.93510339]
[1772119267447,0.98477259,2028.0,2026.3,1.23377584]
[1772119268380,2.21757499,2027.9,2026.2,4.93510339]
[1772119268673,0.98477259,2027.7,2026.1,1.23384873]
[1772119268875,0.98477259,2027.3,2025.7,1.23414128]
[1772119269175,1.178,2027.2,2025.7,1.23414128]
[1772119269679,1.178,2027.2,2025.7,0.88888882]
[1772119270472,1.23328893,2027.1,2025.8,2.12296918]
[1772119270987,1.23328893,2027.1,2025.8,1.23408036]
[1772119271896,1.23328893,2027.1,2025.9,0.88888882]
[1772119272398,1.178,2027.2,2026.1,0.88888882]
[1772119272569,2.41123338,2027.2,2026.0,1.23395853]
[1772119272894,0.98477259,2027.0,2025.6,1.23420014]
[1772119273095,1.23323338,2027.2,2025.6,0.88888882]
[1772119273298,1.23304562,2027.5,2026.0,0.88888882]
[1772119273488,1.177,2027.7,2026.0,0.88888882]
[1772119273683,5.91526967,2028.2,2026.4,0.88888882]
[1772119273684,4.93088769,2028.1,2026.4,0.88888882]
[1772119273889,4.93088769,2028.1,2026.6,0.88888882]
[1772119274400,4.93088769,2028.1,2026.7,2.12242116]
[1772119274607,1.23268083,2028.1,2026.8,0.88888882]
[1772119275191,1.23268083,2028.1,2026.7,2.23553234]
[1772119275568,1.23268083,2028.1,2026.7,3.12442116]
[1772119275771,0.001,2027.9,2026.8,0.88888882]
[1772119276577,0.001,2027.9,2027.0,0.88888882]
[1772119276778,2.41049981,2028.4,2027.0,0.88888882]
[1772119277004,2.41051543,2028.4,2027.0,0.88888882]
[1772119277206,2.41051543,2028.4,2027.1,1.89088882]
[1772119277431,4.9285331,2029.1,2027.2,0.88888882]
[1772119277432,2.40825552,2028.9,2027.2,0.88888882]
[1772119277723,8.06107784,2028.8,2027.3,1.002]
[1772119277874,0.98477259,2028.7,2026.9,1.23341062]
[1772119278074,0.98477259,2028.7,2026.9,2.23541062]
[1772119278502,1.232377,2028.6,2027.1,1.23328893]
[1772119279006,2.21714959,2028.6,2027.1,1.23328893]
[1772119279315,2.21714959,2028.6,2027.1,2.12217775]
[1772119279534,1.232377,2028.6,2027.2,0.88888882]
[1772119279677,1.232377,2028.6,2027.1,2.12217775]
[1772119279995,1.232377,2028.6,2027.2,3.291108]
[1772119280203,1.232377,2028.6,2027.1,2.12217775]
[1772119280774,1.23249852,2028.4,2027.1,2.12217775]
[1772119281074,1.23247008,2028.5,2027.3,0.88888882]
[1772119281275,1.23247008,2028.5,2027.0,1.23331408]
[1772119281497,1.23247008,2028.5,2027.0,0.88888882]
[1772119281703,1.23247008,2028.5,2027.2,0.88888882]
[1772119281886,1.23234712,2028.7,2027.5,14.036649]
[1772119282207,1.23234712,2028.7,2027.6,1.002]
[1772119282771,2.21711971,2028.7,2027.2,1.23322809]
[1772119283203,2.21711971,2028.7,2027.2,2.12211691]
[1772119283772,2.21711971,2028.7,2027.3,0.88888882]
[1772119284201,1.23234712,2028.7,2027.3,0.88888882]
[1772119284578,1.53462989,2028.5,2027.1,1.23324619]
[1772119284794,1.23268083,2028.1,2026.7,1.23353234]
[1772119285110,1.23268083,2028.1,2026.6,1.001]
[1772119285111,1.177,2028.0,2026.6,2.23455535]
[1772119285623,1.177,2028.0,2026.6,3.12344417]
[1772119286310,1.177,2028.0,2026.7,0.89204841]
[1772119286629,1.177,2028.0,2026.9,0.89204841]
[1772119287010,1.2328024,2027.9,2027.0,1.23334977]
[1772119288210,1.2328024,2027.9,2026.9,6.82544752]
[1772119288211,1.2328024,2027.9,2026.9,2.23339073]
[1772119288410,0.90030579,2027.8,2026.8,0.0011]
[1772119288732,0.90030579,2027.5,2026.8,0.0011]
[1772119288895,1.23316726,2027.3,2026.8,0.0011]
[1772119289100,1.53462989,2027.0,2026.2,0.0011]
[1772119289339,0.90030579,2026.9,2026.5,0.0011]
[1772119289502,1.174,2026.8,2025.6,1.23419806]
[1772119289829,1.174,2026.8,2026.3,0.0011]
[1772119290239,1.174,2026.8,2025.5,2.64113406]
[1772119290424,1.174,2026.8,2025.6,1.23419991]
[1772119290624,1.174,2026.8,2025.5,2.64113406]
[1772119290804,1.174,2026.8,2025.5,1.23426172]
[1772119291006,1.23353234,2026.7,2025.4,1.23429465]
[1772119291301,1.23353234,2026.7,2025.4,1.23432397]
[1772119292029,1.23353234,2026.7,2025.6,0.999]
[1772119293347,1.53462989,2027.2,2025.7,1.23414128]
[1772119293348,1.23328893,2027.1,2025.7,1.23414128]
[1772119294128,1.23328893,2027.1,2025.9,0.89314841]
[1772119294659,1.53462989,2027.0,2025.9,0.0011]
[1772119294827,1.23328893,2027.1,2025.9,0.0011]
[1772119295359,4.93315573,2027.2,2025.9,0.0011]
[1772119295959,4.93315573,2027.2,2025.9,0.89314841]
[1772119296371,5.83346152,2027.2,2025.9,0.0011]
[1772119297353,7.36809141,2027.2,2025.9,0.0011]
[1772119297938,0.84241386,2027.1,2025.9,0.0011]
[1772119298133,1.53462989,2026.9,2025.9,0.0011]
[1772119298333,2.01641386,2026.8,2025.9,0.0011]
[1772119298753,1.174,2026.8,2025.9,0.0011]
[1772119299344,6.10812937,2026.8,2025.9,0.0011]
[1772119299545,1.23353234,2026.7,2025.9,0.0011]
[1772119300164,4.9331594,2027.1,2025.9,0.0011]
[1772119300366,4.9331594,2027.1,2025.9,0.892073]
[1772119300367,1.23328893,2027.1,2025.9,0.892073]
[1772119300790,6.10709611,2027.2,2025.9,0.892073]
[1772119300791,1.174,2027.2,2025.9,0.892073]
[1772119300943,1.174,2027.2,2026.2,0.890973]
[1772119301138,2.4072338,2027.2,2026.2,0.890973]
[1772119301338,1.53462989,2027.8,2026.2,0.890973]
[1772119301578,1.23290584,2027.8,2026.6,12.40168256]
[1772119301770,1.23268083,2028.1,2026.7,1.53462989]
[1772119301942,2.40666222,2028.2,2027.1,0.890973]
[1772119302673,2.40663082,2028.2,2027.1,0.890973]
[1772119302876,0.001,2028.6,2027.6,0.890973]
[1772119303177,0.001,2028.6,2027.7,0.890973]
[1772119303381,0.001,2028.6,2027.9,1.2328024]
[1772119303743,0.001,2028.6,2027.9,2.1237754]
[1772119303944,0.001,2028.6,2027.9,1.2328024]
[1772119304345,0.001,2028.6,2027.6,1.2329848]
[1772119304561,0.001,2028.6,2027.3,2.22611956]
[1772119304876,1.53562989,2028.6,2027.2,1.2331879]
[1772119305100,1.53562989,2028.6,2027.0,2.22731835]
[1772119305101,0.84241386,2028.5,2027.0,2.22731835]
[1772119305277,0.84241386,2028.1,2026.7,4.93407345]
[1772119305572,18.136919,2027.7,2026.5,2.22764898]
[1772119305778,18.136919,2027.7,2026.5,2.22762991]
[1772119305958,17.35663,2027.8,2026.5,0.994]
[1772119306276,28.478236,2027.4,2026.1,1.23495601]
[1772119306444,28.478236,2027.4,2026.1,0.0011]
[1772119306445,20.74730086,2027.1,2026.1,0.0011]
[1772119306647,17.47459886,2026.9,2026.1,0.0011]
[1772119306951,17.47459886,2026.9,2025.1,4.93780236]
[1772119306952,21.39653,2026.6,2024.8,3.53210706]
[1772119307148,5.2,2026.5,2025.3,1.23434984]
[1772119307346,2.37704375,2026.5,2024.9,4.93835578]
[1772119307666,1.23371496,2026.4,2024.9,6.47298567]
[1772119307879,1.177,2026.3,2024.9,6.47298567]
[1772119308098,1.177,2026.3,2024.9,4.93835578]
[1772119308466,1.177,2026.3,2024.7,4.99130562]
[1772119308467,21.647312,2025.8,2024.7,0.0523292]
[1772119308778,19.078396,2025.4,2024.7,0.0523292]
[1772119308975,8.724514,2025.4,2024.7,0.0523292]
[1772119309182,2.50175717,2025.9,2024.7,1.28707101]
[1772119309480,2.50175717,2025.9,2024.7,0.0523292]
[1772119309481,1.23414128,2025.7,2024.7,0.0523292]
[1772119309795,1.23414128,2025.7,2024.7,1.28707036]
[1772119309965,30.0,2025.6,2024.7,0.0523292]
[1772119310165,1.178,2025.5,2024.7,1.28705552]
[1772119310377,1.178,2025.5,2024.7,0.0523292]
[1772119311099,3.97,2025.4,2024.7,0.0523292]
[1772119311401,1.178,2025.5,2024.7,0.0523292]
[1772119311706,1.23432408,2025.4,2024.7,0.0523292]
[1772119313090,1.23432408,2025.4,2024.7,1.28704032]
[1772119313296,1.23432408,2025.4,2024.7,1.28707659]
[1772119313692,1.23432408,2025.4,2024.7,0.0523292]
[1772119314201,24.892936,2025.3,2024.5,0.0011]
[1772119314497,13.36467,2025.3,2024.5,0.0011]
[1772119314892,1.23432408,2025.4,2024.5,0.0011]
[1772119315092,1.53462989,2025.0,2024.2,0.0011]
[1772119315283,1.183,2024.9,2024.2,0.0011]
[1772119315684,21.076504,2024.7,2024.2,0.0011]
[1772119316203,16.527756,2024.7,2023.5,1.23548138]
[1772119316407,1.53462989,2024.1,2022.9,1.23692584]
[1772119316712,1.186,2024.0,2022.9,1.23692584]
[1772119316906,13.845681,2023.9,2022.9,0.0011]
[1772119317108,1.186,2024.0,2022.9,1.23693453]
[1772119317791,1.23523889,2023.9,2022.9,0.0011]
[1772119318813,4.2e-07,2021.8,2020.6,0.1615662]
[1772119319017,4.2e-07,2021.8,2020.0,5.0]
[1772119319018,1.175,2021.7,2020.8,1.09778646]
[1772119319181,0.89417203,2022.6,2020.7,9.39592809]
[1772119319182,0.25850443,2023.8,2021.1,0.89197203]
[1772119319517,0.63426662,2023.7,2022.1,0.89197203]
[1772119319711,4.94090239,2024.0,2023.1,3.27641]
[1772119319880,8.123504,2023.7,2022.4,3.27641]
[1772119320216,1.23529993,2023.8,2023.1,3.27641]
[1772119320424,1.23529993,2023.8,2023.2,9.6572266]
[1772119320578,1.23529993,2023.8,2023.2,3.27641]
[1772119320779,7.152458,2024.8,2023.8,4.51170993]
[1772119321122,8.68708789,2024.8,2023.3,7.27278863]
[1772119321327,1.53462989,2024.4,2023.3,6.3808166]
[1772119321626,7.408374,2024.2,2023.3,6.3808166]
[1772119321814,1.23511684,2024.1,2023.3,6.3808166]
[1772119322818,1.53462989,2023.8,2022.3,0.89197203]
[1772119323034,1.191,2023.7,2022.4,5.8726166]
[1772119323207,3.40762,2023.6,2022.4,5.8726166]
[1772119323637,1.191,2023.7,2022.4,6.76458863]
[1772119323934,1.23542202,2023.6,2022.7,0.89197203]
[1772119324134,2.42640405,2023.7,2022.7,0.89197203]
[1772119324326,2.42640405,2023.7,2022.8,6.76458863]
[1772119324526,4.94078257,2024.0,2022.9,0.89197203]
[1772119324826,2.42517786,2024.1,2023.1,0.89197203]
[1772119324827,2.42516137,2024.1,2023.1,0.89197203]
[1772119325209,2.42516137,2024.1,2023.2,5.8726166]
[1772119325436,1.53462989,2023.9,2023.2,5.8726166]
[1772119325736,2.42516137,2024.1,2023.2,5.8726166]
[1772119326439,2.42516137,2024.1,2023.2,7.10827571]
[1772119326941,3.09851935,2024.9,2023.5,0.89197203]
[1772119326942,3.213771,2024.9,2023.5,0.89197203]
[1772119327244,1.53462989,2025.4,2024.1,0.65454472]
[1772119327441,3.548155,2025.3,2024.2,5.8726166]
[1772119327613,2.72462989,2025.4,2023.8,0.994]
[1772119327614,1.19,2025.4,2023.9,0.89197203]
[1772119327813,1.23414128,2025.7,2024.2,0.89197203]
[1772119328014,2.445205,2025.6,2024.2,0.89197203]
[1772119328214,12.373116,2025.3,2024.3,5.8726166]
[1772119328414,1.189,2025.2,2024.3,5.8726166]
[1772119328737,1.189,2025.2,2024.3,6.76458863]
[1772119328940,1.23414128,2025.7,2024.5,0.89197203]
[1772119329108,1.23414128,2025.7,2024.6,6.76458863]
[1772119329312,6.76486989,2025.6,2024.5,5.8726166]
[1772119329536,11.380656,2025.5,2024.1,0.89197203]
[1772119329737,5.872344,2025.5,2024.1,0.89197203]
[1772119329933,4.411894,2025.3,2024.1,2.12704238]
[1772119330313,1.53462989,2025.0,2024.2,5.8726166]
[1772119330531,1.189,2024.9,2023.7,4.94134398]
[1772119330725,1.189,2024.9,2023.8,0.89197203]
[1772119331132,1.189,2024.9,2023.3,7.55769732]
[1772119331133,11.304307,2024.8,2023.9,5.8726166]
[1772119331338,2.931378,2024.8,2023.6,1.23541654]
[1772119331735,2.931378,2024.8,2023.7,5.8726166]
[1772119332050,5.754749,2024.6,2023.4,5.8726166]
[1772119332251,5.754749,2024.6,2023.4,8.00012837]
[1772119332454,2.007294,2024.6,2023.5,0.89197203]
[1772119332660,2.029948,2024.6,2023.5,0.89197203]
[1772119332834,2.029948,2024.6,2023.6,5.8726166]
[1772119333024,2.029948,2024.6,2023.5,0.89197203]
[1772119333025,2.029948,2024.6,2023.3,2.61550031]
[1772119333228,2.029948,2024.6,2023.3,3.85110192]
[1772119333634,2.029948,2024.6,2023.3,4.84610192]
[1772119334040,3.541014,2024.4,2023.2,2.12759092]
[1772119334334,16.245742,2024.2,2022.9,1.23584952]
[1772119334534,4.92028,2024.2,2022.9,1.23584952]
[1772119334735,2.35855379,2024.0,2022.5,1.2371587]
[1772119334942,2.35855379,2024.0,2022.8,0.54256262]
[1772119334943,6.556396,2023.9,2022.8,0.54256262]
[1772119335129,2.82416,2023.7,2022.5,1.2371587]
[1772119335328,18.152773,2023.3,2022.5,0.0011]
[1772119335547,1.191,2023.2,2022.5,1.23717874]
[1772119335752,1.191,2023.3,2022.5,1.23717874]
[1772119335960,1.23566627,2023.2,2022.5,0.0011]
[1772119336155,2.42664591,2023.3,2022.5,0.0011]
[1772119338047,1.23562015,2023.3,2022.5,0.0011]
[1772119338276,2.0149239,2023.8,2022.5,0.0011]
[1772119338277,1.23539882,2023.7,2022.6,0.54256262]
[1772119338582,1.23539882,2023.7,2022.5,1.88807203]
[1772119338583,2.77002871,2023.7,2022.5,1.88807203]
[1772119338778,1.191,2023.6,2022.5,1.88807203]
[1772119339187,0.001,2023.5,2022.5,1.88807203]
[1772119339645,0.001,2023.5,2022.5,0.89307203]
[1772119340047,0.001,2023.5,2022.6,1.23603282]
[1772119340480,15.21092,2023.4,2022.5,0.89307203]
[1772119340649,2.96224,2023.4,2022.5,2.12916373]
[1772119340847,2.94824,2023.4,2022.5,0.89307203]
[1772119341163,1.194,2023.5,2022.5,1.23717407]
[1772119341479,0.001,2023.5,2022.5,1.23717407]
[1772119341781,1.193,2023.4,2022.5,1.2371885]
[1772119341946,1.193,2023.4,2022.5,0.0011]
[1772119342147,1.23560519,2023.3,2022.5,0.0011]
[1772119342345,0.8239239,2023.2,2022.5,0.0011]
[1772119342545,2.649825,2023.1,2022.3,0.0011]
[1772119342750,0.8239239,2022.9,2022.3,0.0011]
[1772119342946,8.898345,2022.7,2022.3,0.0011]
[1772119343261,8.898345,2022.7,2022.0,0.0011]
[1772119344184,1.23603282,2022.6,2022.0,0.0011]
[1772119344561,2.42895261,2022.8,2022.0,0.0011]
[1772119344875,1.193,2022.8,2022.0,0.0011]
[1772119345076,2.42891235,2022.8,2022.0,0.0011]
[1772119345815,0.8239239,2023.3,2022.0,0.0011]
[1772119345816,0.001,2023.5,2022.0,0.89307203]
[1772119346024,3.985336,2023.4,2022.1,1.26842352]
[1772119346189,1.195,2023.5,2022.2,2.50470084]
[1772119346388,0.001,2023.5,2022.3,1.26842352]
[1772119346599,0.001,2023.5,2022.5,1.26842352]
[1772119347096,4.9390485,2024.7,2022.9,1.26842352]
[1772119347097,1.194,2024.7,2022.9,1.26842352]
[1772119347314,1.193,2025.1,2023.3,1.26842352]
[1772119347818,7.228904,2025.0,2023.5,1.26842352]
[1772119348010,6.673131,2024.9,2023.5,1.26842352]
[1772119348195,1.23468984,2024.8,2023.5,1.26842352]
[1772119348398,6.751829,2024.7,2023.4,1.26842352]
[1772119348603,5.804258,2025.0,2023.4,1.26842352]
[1772119348991,11.004258,2025.0,2023.4,1.26842352]
[1772119349225,17.99132,2024.9,2023.4,1.26842352]
[1772119349526,12.54976312,2024.9,2023.3,1.23560519]
[1772119349692,11.92707412,2024.6,2023.1,1.23572734]
[1772119349887,6.150035,2024.4,2023.1,1.23572734]
[1772119350303,1.23499481,2024.3,2023.1,1.23572734]
[1772119350532,2.769,2024.4,2023.2,1.26842352]
[1772119350891,6.081,2025.0,2023.3,1.26842352]
[1772119351123,6.4169516,2025.3,2023.7,1.26842352]
[1772119351415,2.42733301,2025.4,2023.9,1.26842352]
[1772119351590,2.4273276,2025.4,2023.9,1.26842352]
[1772119351786,14.497627,2025.3,2023.9,1.26842352]
[1772119352292,13.559121,2025.1,2023.6,0.992]
[1772119352517,13.559121,2025.1,2023.7,1.26842352]
[1772119352819,17.885143,2025.2,2023.7,1.26842352]
[1772119353031,4.171696,2025.1,2023.7,1.26842352]
[1772119353233,1.17204012,2025.0,2023.3,2.50402871]
[1772119353403,11.643045,2024.7,2023.3,2.50402871]
[1772119353733,5.692624,2024.7,2023.3,2.50402871]
[1772119354036,5.692624,2024.7,2023.3,1.23560519]
[1772119354242,1.2348728,2024.5,2023.0,1.23578843]
[1772119354453,1.193,2024.4,2023.0,2.50421195]
[1772119354603,1.193,2024.4,2023.1,1.26842352]
[1772119356352,1.193,2024.4,2023.3,1.26842352]
[1772119357298,2.42794032,2024.4,2023.3,1.26842352]
[1772119357505,2.42794145,2024.4,2023.3,1.26842352]
[1772119357699,1.193,2024.4,2023.3,1.26842352]
[1772119357903,5.240293,2025.4,2023.5,1.27022746]
[1772119358121,2.676,2025.4,2023.9,1.27022746]
[1772119358322,3.91037268,2025.4,2024.0,1.23517786]
[1772119358540,1.23437268,2025.4,2024.0,2.22517786]
[1772119358727,2.42426923,2025.5,2024.0,3.49540532]
[1772119358930,1.25196326,2025.3,2024.0,1.23517786]
[1772119359427,2.42426923,2025.5,2024.0,1.23517786]
[1772119359627,17.799416,2025.4,2024.0,1.23517786]
[1772119359827,10.63744626,2025.3,2024.0,1.23517786]
[1772119360031,13.782616,2025.2,2024.0,1.23517786]
[1772119360337,1.23462887,2024.9,2023.7,1.23536097]
[1772119360560,25.029678,2024.7,2023.7,1.23536097]
[1772119361267,1.19,2024.8,2023.7,1.23536097]
[1772119361765,2.773,2024.8,2023.7,1.23536097]
[1772119361966,1.23462887,2024.9,2023.7,1.23536097]
[1772119362355,1.19,2025.2,2023.9,1.23523889]
[1772119362356,2.42445765,2025.2,2023.9,1.23523889]
[1772119362561,1.19,2025.2,2024.0,1.27022746]
[1772119362773,1.19,2025.2,2024.1,2.25922746]
[1772119362988,1.19,2025.2,2024.2,1.27022746]
[1772119363195,1.23414128,2025.7,2024.2,1.27022746]
[1772119363479,1.23414128,2025.7,2024.3,0.988]
[1772119363480,4.088388,2025.6,2024.3,0.988]
[1772119363934,4.088388,2025.6,2024.2,1.27022746]
[1772119364133,4.088388,2025.6,2024.3,0.988]
[1772119364366,1.23432408,2025.4,2023.9,1.23633889]
[1772119364548,0.001,2025.0,2023.9,1.23633889]
[1772119365067,0.001,2025.0,2024.0,1.27022746]
[1772119365273,3.82900268,2025.9,2024.1,1.27022746]
[1772119365565,5.06303266,2025.9,2024.1,1.27022746]
[1772119366270,1.188,2026.1,2024.5,1.27022746]
[1772119366573,2.42189999,2026.1,2024.7,1.27022746]
[1772119366774,1.188,2026.1,2024.7,1.27022746]
[1772119367064,2.42190175,2026.1,2024.7,1.27022746]
[1772119367641,1.188,2026.1,2024.7,1.27022746]
[1772119367942,28.264166,2026.0,2024.8,0.986]
[1772119368163,28.264166,2026.0,2024.6,1.23481181]
[1772119368164,24.56820826,2026.0,2024.6,1.23481181]
[1772119368359,1.23408036,2025.8,2024.4,4.93924725]
[1772119368689,20.65493426,2025.7,2024.4,4.93924725]
[1772119368902,4.16924,2025.6,2024.4,4.93924725]
[1772119369061,1.186,2025.5,2024.4,4.93924725]
[1772119369585,2.666896,2025.4,2024.4,4.93924725]
[1772119370671,2.42027614,2025.5,2024.3,0.985]
[1772119370874,1.186,2025.5,2024.4,1.27022746]
[1772119371080,4.93586972,2026.0,2024.5,1.27022746]
[1772119371081,1.185,2026.0,2024.5,1.27022746]
[1772119371284,1.185,2026.0,2024.4,2.15789743]
[1772119371285,1.185,2026.0,2024.9,1.27022746]
[1772119371501,1.185,2026.0,2024.7,0.985]
[1772119371660,1.185,2026.0,2024.9,1.27022746]
[1772119372261,0.001,2026.1,2024.9,1.27022746]
[1772119372664,0.001,2026.1,2025.0,2.50479536]
[1772119372963,0.001,2026.1,2025.0,2.2185679]
[1772119374065,19.686809,2026.0,2025.0,1.2345679]
[1772119374294,3.660332,2026.0,2025.0,1.1345679]
[1772119374691,3.660332,2026.0,2024.6,4.9392279]
[1772119374692,20.720939,2025.8,2024.6,4.9392279]
[1772119374869,10.517123,2025.8,2024.6,4.9392279]
[1772119375070,2.41501944,2025.9,2024.6,4.9392279]
[1772119375696,14.37866926,2025.8,2024.6,4.9392279]
[1772119375896,2.647,2025.7,2024.6,4.9392279]
[1772119376504,1.181,2025.9,2024.7,1.25234442]
[1772119376831,2.41502438,2025.9,2024.8,2.48813426]
[1772119377028,1.181,2025.9,2024.9,0.984]
[1772119377192,0.001,2025.8,2024.9,0.984]
[1772119377527,14.091315,2025.7,2024.8,1.23578984]
[1772119377701,0.001,2025.8,2024.8,1.23578984]
[1772119378023,16.340575,2025.7,2024.8,1.23578984]
[1772119378196,2.99,2025.7,2024.8,1.23578984]
[1772119378398,0.001,2025.8,2024.8,1.23578984]
[1772119378608,0.001,2025.8,2024.8,0.0011]
[1772119379530,0.001,2025.8,2024.8,1.25344442]
[1772119380333,18.127059,2025.7,2024.8,0.0011]
[1772119380535,15.08406,2025.5,2024.8,0.0011]
[1772119380827,0.001,2025.8,2024.9,2.23634442]
[1772119381024,1.23511377,2025.8,2024.9,2.23634442]
[1772119381197,1.23511377,2025.8,2024.8,0.0011]
[1772119381198,1.181,2025.7,2024.8,0.0011]
[1772119381397,1.20070653,2025.5,2024.5,0.0011]
[1772119381606,1.20070653,2025.5,2024.5,1.2359516]
[1772119381808,1.20070653,2025.2,2024.3,0.0011]
[1772119382006,14.830855,2025.0,2024.3,1.23608484]
[1772119382227,2.38170653,2025.1,2024.3,1.23609356]
[1772119382807,1.2345679,2025.0,2024.3,0.0011]
[1772119383006,22.178673,2024.9,2024.3,0.0011]
[1772119383228,2.833277,2024.8,2024.3,0.0011]
[1772119384162,23.053801,2024.5,2023.9,0.0011]
[1772119384451,1.20070653,2024.6,2023.7,0.0011]
[1772119384452,1.20070653,2024.2,2023.7,0.0011]
[1772119384622,8.559326,2024.1,2023.4,0.0011]
[1772119384830,1.23517786,2024.0,2023.4,0.0011]
[1772119385138,18.204415,2023.9,2023.4,0.0011]
[1772119385456,2.41713747,2024.1,2023.4,0.0011]
[1772119385762,2.41712505,2024.1,2023.4,0.0011]
[1772119385930,4.59413,2024.0,2023.4,0.0011]
[1772119386329,2.41712505,2024.1,2022.7,0.0011]
[1772119386330,10.84525,2023.5,2022.7,0.0011]
[1772119386628,10.84525,2023.5,2022.5,0.0011]
[1772119386629,1.20070653,2023.2,2022.5,0.0011]
[1772119386875,1.20070653,2023.2,2022.2,0.0011]
[1772119386876,11.61141953,2022.9,2022.2,0.0011]
[1772119387157,6.075136,2022.7,2022.2,0.0011]
[1772119387361,2.290036,2022.7,2022.2,0.0011]
[1772119388028,1.20070653,2022.6,2021.1,1.25234442]
[1772119388362,5.921555,2022.2,2021.1,1.23695017]
[1772119388653,1.186,2022.4,2021.1,1.23695017]
[1772119388865,1.186,2022.4,2021.2,1.25234442]
[1772119389045,2.42216978,2022.4,2021.2,1.23234442]
[1772119389245,1.186,2022.4,2021.2,1.23234442]
[1772119389423,2.43646837,2023.1,2021.3,1.25234442]
[1772119389628,1.185,2023.1,2021.7,1.25234442]
[1772119390054,15.77313,2023.0,2022.4,0.0011]
[1772119390650,3.366,2023.0,2022.4,0.0011]
[1772119391206,2.85015,2023.5,2022.4,0.0011]
[1772119391356,4.320928,2023.6,2022.4,0.0011]
[1772119391671,3.366,2023.6,2022.4,0.0011]
[1772119391875,5.07230887,2023.7,2022.4,0.0011]
[1772119392253,11.25628,2023.6,2022.4,0.0011]
[1772119392576,19.484644,2023.3,2022.4,0.0011]
[1772119392782,6.523912,2023.1,2022.4,0.0011]
[1772119393288,1.186,2023.2,2022.4,0.0011]
[1772119393651,1.23555756,2023.4,2022.4,0.0011]
[1772119393854,2.6509373,2023.7,2022.4,0.0011]
[1772119393855,8.43352,2023.6,2022.4,0.0011]
[1772119394054,12.93281,2023.7,2022.4,1.25344442]
[1772119394254,12.38157,2023.7,2022.4,1.25344442]
[1772119394857,9.277317,2023.7,2022.4,1.25344442]
[1772119395057,4.248877,2023.7,2022.4,1.25344442]
[1772119395289,25.18457,2023.7,2022.5,2.48843836]
[1772119395602,11.803367,2023.9,2022.6,1.25234442]
[1772119395758,13.32547853,2023.7,2022.5,1.23609394]
[1772119395965,7.662271,2023.5,2022.5,1.23609394]
[1772119396291,7.662271,2023.5,2022.4,0.0011]
[1772119396506,18.86463253,2023.3,2022.4,0.0011]
[1772119396654,6.190626,2023.2,2022.4,1.23725068]
[1772119396982,4.75529,2023.1,2022.4,0.0011]
[1772119397184,1.23578843,2023.0,2022.4,0.0011]
[1772119397957,1.188,2023.5,2022.4,0.0011]
[1772119398166,1.188,2023.8,2022.4,1.25344442]
[1772119398365,1.188,2023.8,2023.1,2.45705]
[1772119398594,2.647,2024.0,2023.3,2.45705]
[1772119398791,2.647,2024.0,2023.1,2.45705]
[1772119399096,2.647,2024.0,2022.8,1.25234442]
[1772119399097,2.647,2024.0,2022.8,2.45705]
[1772119399399,5.448373,2023.8,2022.6,1.23603282]
[1772119399593,3.616535,2023.6,2022.6,1.23603282]
[1772119399779,3.616535,2023.6,2022.9,2.45705]
[1772119400474,1.188,2024.0,2022.9,2.45705]
[1772119400686,15.402628,2023.9,2022.9,2.45705]
[1772119400889,11.921271,2023.9,2022.9,2.45705]
[1772119401274,16.05162699,2023.7,2022.5,1.23609394]
[1772119401484,13.998847,2023.5,2022.5,1.23609394]
[1772119401967,16.407015,2023.3,2022.4,0.0011]
[1772119402300,30.0,2023.0,2022.4,0.0011]
[1772119402498,1.189,2023.0,2022.4,0.0011]
[1772119402798,8.121259,2022.9,2022.2,1.23736763]
[1772119403001,8.121259,2022.9,2022.2,0.0011]
[1772119403002,5.368714,2022.9,2022.2,0.0011]
[1772119403200,1.23591061,2022.8,2022.2,0.0011]
[1772119403378,1.23591061,2022.8,2022.6,0.0011]
[1772119403699,7.893401,2022.7,2022.2,0.0011]
[1772119403868,1.23591061,2022.8,2022.2,0.0011]
[1772119403869,1.19,2022.6,2022.2,0.0011]
[1772119404266,1.19,2022.6,2021.9,0.0011]
[1772119404267,2.505638,2022.5,2022.4,0.0011]
[1772119404498,2.505638,2022.5,2021.9,0.0011]
[1772119404703,1.54177299,2022.3,2020.9,2.48941701]
[1772119404905,1.54177299,2022.3,2021.0,1.25234442]
[1772119404906,1.191,2022.3,2021.0,1.25234442]
[1772119405503,3.33616,2022.2,2021.2,1.25234442]
[1772119405747,2.42723984,2022.3,2021.2,1.25234442]
[1772119405906,2.686,2022.2,2021.2,1.25234442]
[1772119406233,8.74161,2022.2,2021.1,1.23695017]
[1772119406636,6.981624,2022.2,2021.1,1.23695017]
[1772119407344,4.70276,2022.0,2021.0,4.9478007]
[1772119407631,4.94486475,2022.4,2021.0,4.9478007]
[1772119407632,1.54177299,2022.9,2021.0,1.21010318]
[1772119407805,4.24815,2022.7,2021.0,1.21010318]
[1772119408008,3.33275,2022.7,2021.2,1.21010318]
[1772119408338,3.095699,2022.7,2021.4,1.21010318]
[1772119408523,2.872755,2022.7,2021.4,1.21010318]
[1772119409002,1.54177299,2022.6,2021.4,1.21010318]
[1772119409205,4.06811105,2022.5,2021.5,1.23670541]
[1772119409419,1.23611105,2022.5,2021.5,1.23670541]
[1772119409618,1.192,2022.4,2021.5,1.23670541]
[1772119409970,19.961367,2022.3,2021.5,1.23670541]